Cogmind - Beta 14 X2 @@@ ROGUE MODE // 2024.07.31 @ 11:29:37 Player: Minty Result: Destroyed by G-47 Trooper with Particle Gun Performance ------------- Evolutions (2) 1000 Regions Visited (3) 600 Robots Destroyed (60) 300 Value Destroyed (1702) 1702 Prototype IDs (8) 160 Alien Tech Used (0) 0 Bonus (11) 11 TOTAL SCORE: 3773 Bonus ------- High Alert Combat Kills 11 Cogmind --------- Core Integrity 0/550 Matter 285/300 Energy 160/290 System Corruption 0% Temperature Cool (61) Movement Core (1600) Ox31 Location -8/Materials Parts ------- > --- POWER (1) -------- Improved Deuterium Engine > --- PROPULSION (3) --- (None) > --- UTILITY (5) ------ Huge Storage Unit Advanced Visual Processing Unit Core Analyzer Hacking Suite > --- WEAPON (2) ------- Heavy EM Shotgun > --- INVENTORY (25) --- Improved Carbon-fiber Leg Improved Cooling System Weight Redist. System Target Analyzer Hardened Light Armor Plating Hardened Light Armor Plating Hardened Light Armor Plating Hardened Light Armor Plating Hacking Suite Advanced Beam Cannon Peak State ------------ > --- POWER ------------ Improved Deuterium Engine > --- PROPULSION ------- Wheel Wheel Wheel > --- UTILITY ---------- Improved Cooling System Huge Storage Unit Advanced Visual Processing Unit Core Analyzer Hacking Suite > --- WEAPON ----------- Pulse Rifle Gauss Rifle > --- INVENTORY -------- Improved Deuterium Engine Improved Carbon-fiber Leg Improved Cooling System Weight Redist. System Target Analyzer Hardened Light Armor Plating Hardened Light Armor Plating Hardened Light Armor Plating Hardened Light Armor Plating Hacking Suite Heavy EM Shotgun Advanced Beam Cannon Advanced Beam Cannon EMP Blaster [Rating: 33] Favorites ----------- Power Ion Engine Engine Ion Engine Propulsion Armored Wheel Treads Improved Treads Leg Aluminum Leg Wheel Armored Wheel Hover Unit Improved Hover Unit Utility Hacking Suite Device Structural Scanner Storage Medium Storage Unit Processor Advanced Visual Processing Unit Hackware Hacking Suite Weapon Advanced Beam Cannon Energy Gun EM Pulse Gun Energy Cannon Advanced Beam Cannon Ballistic Gun Gauss Rifle Launcher Rocket Launcher Special Weapon Welding Torch Build | -11 -10 -9 -8 ------- Run | Yrd Mat Mat Mat Slots Evolved 4 | . . 2 2 Power . | . . . . Propulsion 1 | . . . 1 Utility 3 | . . 2 1 Weapon . | . . . . Parts Attached 59 | . 13 24 22 Power 4 | . 1 1 2 Engine 4 | . 1 1 2 Core . | . . . . Reactor . | . . . . Propulsion 20 | . 5 7 8 Treads 4 | . . 2 2 Leg 1 | . . . 1 Wheel 13 | . 5 3 5 Hover 2 | . . 2 . Flight . | . . . . Utility 14 | . 3 7 4 Device 5 | . 1 2 2 Storage 2 | . 1 1 . Processor 4 | . 1 1 2 Hackware 3 | . . 3 . Protection . | . . . . Artifact . | . . . . Weapon 21 | . 4 9 8 Energy Gun 11 | . 4 4 3 Energy Cannon 4 | . . 3 1 Ballistic Gun 1 | . . . 1 Ballistic Cannon . | . . . . Launcher 4 | . . 2 2 Special Weapon 1 | . . . 1 Impact Weapon . | . . . . Slashing Weapon . | . . . . Piercing Weapon . | . . . . Special Melee Weapon . | . . . . Unidentified Prototypes . | . . . . Parts Lost 25 | . 2 4 19 Power 2 | . . . 2 Propulsion 8 | . . 1 7 Utility 3 | . . . 3 Weapon 12 | . 2 3 7 Highest Loss Streak 10 | . 1 3 10 To Critical Strikes 1 | . . . 1 Average Slot Usage (%) 94 | . 98 93 89 Engine 11 | . 14 11 7 Treads 5 | . . 7 12 Wheel 16 | . 27 12 8 Device 6 | . 9 2 8 Storage 11 | . 14 11 9 Processor 2 | . 3 . 6 Hackware 16 | . . 27 19 Energy Gun 12 | . 26 6 3 Energy Cannon 7 | . . 12 9 Naked Turns . | . . . . Heaviest Build 99 | 14 20 95 99 Greatest Support 66 | 20 24 46 66 Greatest Overweight (x) 28 | . . 2 28 Average Overweight (x) . | . . . 2 Largest Inventory Capacity 25 | . 10 25 25 Average Capacity 14 | . 9 13 25 Most Carried 14 | . 10 13 14 Average Carried 10 | . 9 10 11 Final Capacity 25 | 8 10 25 25 Final Carried 13 | 6 10 13 10 Class Distribution -------------------- 48% | Hacker-Mutant 42% | Mutant 9% | Scavenger-Mutant Dominant Class ---------------- Mutant | -10/Materials Hacker-Mutant | -9/Materials Hacker-Mutant | -8/Materials Resources | -11 -10 -9 -8 ----------- Run | Yrd Mat Mat Mat Matter Collected 877 | 188 132 303 254 Remotely . | . . . . Salvage Created 2265 | . 476 1079 710 Parts 132 | . 31 66 35 Haulers Intercepted 3 | . . 3 . Recyclers Shooed 1 | . . . 1 Parts Field Recycled . | . . . . Retrieved Matter . | . . . . Parts Self-Destructed . | . . . . Prevented . | . . . . Kills | -11 -10 -9 -8 ------- Run | Yrd Mat Mat Mat Combat Hostiles Destroyed 40 | . 14 16 10 Guns 19 | . 11 6 2 Cannons 12 | . . 6 6 AOE 8 | . 3 4 1 Classes Destroyed 13 | . 5 6 2 Worker 1 | . . . 1 Builder 2 | . . 1 1 Tunneler 1 | . 1 . . Hauler 3 | . . 3 . Recycler 3 | . . 2 1 Mechanic 1 | . . 1 . Operator 2 | . 2 . . Watcher 7 | . 2 4 1 Swarmer 10 | . 6 4 . Grunt 19 | . 8 6 5 Brawler 1 | . . 1 . Sentry 5 | . . 5 . Specialist 5 | . . . 5 Best Kill Streak 5 | . 5 5 4 Combat Bots Only 5 | . 5 4 3 Max Kills in Single Turn 4 | . 4 2 2 Gunslinging . | . . . . Exploded 3 | . 3 1 1 Melee . | . . . . Uniques/NPCs Destroyed . | . . . . Combat | -11 -10 -9 -8 -------- Run | Yrd Mat Mat Mat Hostile Shots Fired 259 | . 52 77 130 Missed 76 | . 14 28 34 Damage Taken 3219 | . 484 651 2084 Core 845 | . 167 127 551 Absorbed by Shields . | . . . . Regen/Repaired (Parts) 64 | . 52 12 . Core Remaining (%) 67 | 100 33 68 . Volleys Fired 175 | . 46 68 61 Largest 2 | . 2 2 2 Hottest 136 | . 100 136 136 Shots Fired 299 | . 92 116 91 Gun 185 | . 92 54 39 Cannon 99 | . . 55 44 Launcher 15 | . . 7 8 Special . | . . . . Kinetic 17 | . . . 17 Thermal 188 | . 76 55 57 Explosive 8 | . . 7 1 Electromagnetic 86 | . 16 54 16 Robot Hit Streak 15 | . 8 15 14 Robot Miss Streak 6 | . 6 3 5 Penetration Max 1 | . . . 1 Secondary Targets 1 | . 1 . . Max Gunslinging Chain 1 | . 1 . . Shots Hit Robots 177 | . 48 70 59 Core Hits 87 | . 29 31 27 Critical Kills . | . . . . Critical Parts Destroyed . | . . . . Critical Strikes 2 | . 1 1 . Burn 1 | . 1 . . Corrupt 1 | . . 1 . Melee Attacks . | . . . . Impact . | . . . . Slashing . | . . . . Piercing . | . . . . Sneak Attacks . | . . . . Combat Hostiles . | . . . . Follow-up Attacks . | . . . . Damage Inflicted 3984 | . 870 1448 1666 Guns 1618 | . 631 475 512 Cannons 1288 | . . 615 673 Explosions 1056 | . 239 354 463 Melee . | . . . . Ramming 22 | . . 4 18 Kinetic 216 | . . . 216 Thermal 2360 | . 730 694 936 Explosive 428 | . . 275 153 Electromagnetic 958 | . 140 475 343 Impact . | . . . . Slashing . | . . . . Piercing . | . . . . Highest Corruption 1 | . 1 1 . Average Corruption 1 | . 1 1 . Corruption Purged . | . . . . Corruption Blocked . | . . . . Effects 2 | . . 2 . Matter Fused 1 | . . 1 . Data Loss (minor) 1 | . . 1 . Overload Shots . | . . . . Overflow Damage 52 | . 29 23 . Projectiles 13 | . . 13 . Explosions 39 | . 29 10 . Melee . | . . . . Knockbacks . | . . . . Impact . | . . . . Kinetic . | . . . . Secondary . | . . . . Self-Inflicted Damage 153 | . 56 49 48 Shots 4 | . 1 1 2 Rammed 4 | . . 2 2 Targets Rammed 4 | . . 2 2 Kicked . | . . . . Crushed . | . . . . Highest Temperature 448 | . 416 448 198 Average Temperature 103 | . 121 102 63 Received Heat Transfer 1062 | . 213 237 612 Effects 11 | . 6 5 . Shutdowns 2 | . 1 1 . Energy Bleed 5 | . 2 3 . Interference 2 | . 2 . . Short Circuit 2 | . 1 1 . Siege Activations . | . . . . Robots Corrupted 1 | . . . 1 Combat Hostiles 1 | . . . 1 Parts Fried 5 | . . 1 4 Impact Corruptions . | . . . . Robots Melted . | . . . . Combat Hostiles . | . . . . Parts Melted 10 | . 4 2 4 Heat Transferred 4544 | . 1717 1210 1617 Parts Sabotaged . | . . . . Parts Stolen . | . . . . Parts Stripped . | . . . . Power Chain Reactions 2 | . . 1 1 Alert | -11 -10 -9 -8 ------- Run | Yrd Mat Mat Mat Peak Influence 444 | . 385 444 320 Initial 176 | . . 53 176 Average 227 | . 154 292 220 Maximum Alert Level 2 | . 1 2 1 Low Security (%) 54 | . 91 28 48 Level 1 37 | . 8 52 51 Level 2 8 | . . 18 . Level 3 . | . . . . Level 4 . | . . . . Level 5 . | . . . . High Security . | . . . . Max Security . | . . . . Squads Dispatched 9 | . 3 1 5 Investigation 1 | . 1 . . Extermination . | . . . . Reinforcement 8 | . 2 1 5 Assault . | . . . . Garrison . | . . . . Intercept . | . . . . Searches Triggered . | . . . . Construction Impeded 1 | . . . 1 Haulers Reinforced . | . . . . Active Scanning Responses . | . . . . Cargo Convoy Interrupts . | . . . . Stealth | -11 -10 -9 -8 --------- Run | Yrd Mat Mat Mat Distress Signals 5 | . 1 2 2 Communications Jammed . | . . . . Distress Signals . | . . . . Times Spotted 71 | . 19 24 28 Peak Tracking Total 6 | . 4 5 6 Tactical Retreats 9 | . . 5 4 Traps | -11 -10 -9 -8 ------- Run | Yrd Mat Mat Mat Traps Triggered 2 | . 1 1 . Indirectly . | . . . . Trap Hack Attempts . | . . . . Triggered . | . . . . Disarmed . | . . . . Reprogrammed . | . . . . Reused . | . . . . Traps Extracted . | . . . . Installed . | . . . . Triggered . | . . . . Machines | -11 -10 -9 -8 ---------- Run | Yrd Mat Mat Mat Machines Disabled 6 | . 2 2 2 Max in Single Turn 2 | . 2 1 1 Machines Repaired . | . . . . Machines Dismantled . | . . . . Machines Sabotaged . | . . . . Overloaded Fab Kills . | . . . . Hacking | -11 -10 -9 -8 --------- Run | Yrd Mat Mat Mat Machines Accessed 18 | . 9 8 1 Terminals 12 | . 6 5 1 Fabricators . | . . . . Repair Stations 2 | . 1 1 . Recycling Units 4 | . 2 2 . Scanalyzers . | . . . . Garrison Access . | . . . . Total Hacks 61 | . 31 27 3 Successful 44 | . 20 21 3 Failed 17 | . 11 6 . Catastrophic 1 | . 1 . . Database Lockouts . | . . . . Manual 35 | . 17 16 2 Terminals 43 | . 19 21 3 Fabricators . | . . . . Repair Stations 6 | . 4 2 . Recycling Units 12 | . 8 4 . Scanalyzers . | . . . . Garrison Access . | . . . . Terminal Hacks 18 | . 7 9 2 Record 1 | . . 1 . Prototype ID Bank 5 | . 2 3 . Branch Access Points 1 | . . . 1 Emergency Access Points 1 | . . 1 . Terminal Index 3 | . 1 1 1 Alert Level 4 | . 2 2 . Locate Traps 1 | . 1 . . Patrol Status 2 | . 1 1 . Fabricator Hacks . | . . . . Repair Station Hacks 6 | . 4 2 . Scan Component 3 | . 2 1 . Repair 3 | . 2 1 . Recycling Unit Hacks 8 | . 4 4 . Process 1 | . . 1 . Report Inventory 4 | . 2 2 . Retrieve Matter 1 | . . 1 . Retrieve Components 2 | . 2 . . Scanalyzer . | . . . . Garrison Access Hacks . | . . . . Unauthorized Hacks 12 | . 5 6 1 Terminals 12 | . 5 6 1 Botnet 1 | . . 1 . Skim 11 | . 5 5 1 Fabricators . | . . . . Repair Stations . | . . . . Recycling Units . | . . . . Scanalyzers . | . . . . Garrison Access . | . . . . Data Cores Recovered . | . . . . Used . | . . . . Hacking Detections 14 | . 7 6 1 Full Trace Events 1 | . 1 . . Feedback Events 1 | . 1 . . Corruption 1 | . 1 . . Feedback Blocked . | . . . . Robot Schematics Acquired . | . . . . Robots Built . | . . . . Authchips . | . . . . Time . | . . . . Total Robot Build Rating . | . . . . Part Schematics Acquired . | . . . . Parts Built . | . . . . Authchips . | . . . . Time . | . . . . Total Part Build Rating . | . . . . Parts Repaired 3 | . 2 1 . Time 88 | . 62 26 . Parts Recycled . | . . . . Recycled Matter 166 | . . 166 . Retrieved Matter 271 | . . 271 . Retrieved Components 8 | . 8 . . Parts Scanalyzed . | . . . . Part Schematics Acquired . | . . . . Parts Damaged . | . . . . Bothacking | -11 -10 -9 -8 ------------ Run | Yrd Mat Mat Mat Used RIF Installer . | . . . . Robots Hacked . | . . . . Non-combat . | . . . . Combat . | . . . . Robot Hacks Applied . | . . . . Relay Couplers Released . | . . . . Fabnet Peak Effective % . | . . . . Robots Rewired . | . . . . Allies Hacked . | . . . . Hacks Repelled . | . . . . Allies | -11 -10 -9 -8 -------- Run | Yrd Mat Mat Mat Total Allies . | . . . . Largest Group . | . . . . Highest-Rated Group . | . . . . Highest-Rated Ally . | . . . . Total Orders . | . . . . Ally Attacks . | . . . . Total Damage . | . . . . Kills . | . . . . Allies Corrupted . | . . . . Allies Melted . | . . . . Intel | -11 -10 -9 -8 ------- Run | Yrd Mat Mat Mat Robot Analysis Total . | . . . . Derelict Logs Recovered . | . . . . Drone Launches . | . . . . Drone Recoveries . | . . . . Exploration | -11 -10 -9 -8 ------------- Run | Yrd Mat Mat Mat Turns Passed 2649 | . 924 1124 601 Spaces Moved 1231 | 1 461 583 186 Core 1 | . . . 1 Treads 191 | . . 105 86 Legs 14 | 1 12 . 1 Wheels 990 | . 449 443 98 Hover 35 | . . 35 . Flight . | . . . . Fastest Speed 80 | 120 80 90 125 Average Speed 120 | 120 85 122 199 Slowest Speed 1450 | 120 120 320 1450 Overloaded Moves . | . . . . Propulsion Burnouts . | . . . . Robots Hopped . | . . . . Cave-ins Triggered . | . . . . Exploration Rate (%) 37 | 2 78 61 9 Regions Visited 3 Branch Regions . Pre-discovered Areas 4 | . 1 3 . Known Exits Taken 1 | . . 1 . Unknown Exits Taken 2 | 1 1 . . Scrap Searched . | . . . . Spaces Dug . | . . . . Terrain Destroyed 87 | . 35 45 7 Melee . | . . . . Projectile . | . . . . AOE 87 | . 35 45 7 Terrain Rammed . | . . . . Walls Destroyed . | . . . . Machines Disabled . | . . . . Actions | -11 -10 -9 -8 --------- Run | Yrd Mat Mat Mat Total 2094 | . 900 878 316 Wait 557 | . 352 167 38 Move 1228 | . 460 582 186 Hop . | . . . . Pick Up 36 | . 16 15 5 Fast Attach 20 | . 3 9 8 Attach 16 | . 3 5 8 Detach 5 | . . 5 . Swap 23 | . 7 10 6 Drop 30 | . 13 15 2 Fire 175 | . 46 68 61 Melee . | . . . . Ram . | . . . . Kick . | . . . . Crush 4 | . . 2 2 Escape Stasis . | . . . . Rewire . | . . . . Trap . | . . . . Miscellaneous . | . . . . Route ------- -11/Scrapyard -10/Materials (discovered 3 exits: *Mat x2 / [*Min]) -9/Materials (discovered 4 exits: *Mat x3 / [*Min]) -8/Materials History --------- Turn | Location | Event 1 | -11/Scrapyard | Discovered new exit (range 0) 1 | -11/Scrapyard | Entered Materials 188 | -10/Materials | Repaired Broken Med. Laser 215 | -10/Materials | Repaired Wheel 324 | -10/Materials | Core integrity fell below 50% 330 | -10/Materials | Build established: Mutant 363 | -10/Materials | Discovered new exit (range 16) 406 | -10/Materials | Discovered new exit (range 13) 694 | -10/Materials | Learned Storage garrison access intel 701 | -10/Materials | Derelicts attacked the area 843 | -10/Materials | Loaded intel: 1 repair station location 871 | -10/Materials | Discovered new exit (range 16) 893 | -10/Materials | Loaded intel: 13 trap records 925 | -10/Materials | Entered another Materials area 925 | -9/Materials | Evolved 2 slots: Utility x2 1080 | -9/Materials | Repaired Structural Scanner 1270 | -9/Materials | Lost 3 parts (1n2w) 1331 | -9/Materials | Discovered new exit (range 12) 1461 | -9/Materials | Build established: Hacker-Mutant 1530 | -9/Materials | Discovered new exit (range 15) 1706 | -9/Materials | Learned Storage trap positions 1767 | -9/Materials | Loaded intel: 2 recycling unit locations 1861 | -9/Materials | Learned location of Recycling (-7) 1883 | -9/Materials | Discovered new exit (range 15) 1892 | -9/Materials | Loaded intel: 17 trap records 1911 | -9/Materials | Learned 2 Storage zone layouts 1942 | -9/Materials | Identified exit to Materials 1981 | -9/Materials | Learned Storage emergency access door positions 2028 | -9/Materials | Learned location of Storage (-7) 2049 | -9/Materials | Entered another Materials area 2049 | -8/Materials | Evolved 2 slots: Propulsion x1, Utility x1 2372 | -8/Materials | Lost 8 parts (1p4n1u2w) 2541 | -8/Materials | Core integrity fell below 50% 2596 | -8/Materials | Core integrity fell below 20% 2650 | -8/Materials | Destroyed by G-47 Trooper with Particle Gun Last Messages --------------- 02606_ Critical hit (Destroy). 02606_ Imp. Cooling System destroyed. 02606_ Acquired 1 matter. 02610_ Acquired 32 matter. 02628_ Acquired Welding Torch. 02632_ Penetrated by Slug. 02632_ Welding Torch destroyed. 02633_ Imp. Deuterium Engine destroyed. 02635_ Slug penetrates Wall. 02636_ X-62 Marksman shuts down. 02636_ Chain reaction triggered in Imp. Deuterium Engine. 02637_ Slug penetrates Wall. 02645_ Wheel destroyed. 02646_ Slug penetrates X-62 Marksman. 02646_ X-62 Marksman destroyed. 02647_ X-62 Marksman system terminally corrupted. 02647_ Imp. Deuterium Engine fried. 02647_ Core Analyzer fried. 02647_ Targeting Computer fried. 02647_ Armor Integrity Analyzer fried. Map ----- +----------------------------------------------------+ | ????????????????????????????????????????????????? | | ????????????????????????????????????????????????? | | ????????????????????????????????????????????????? | | ????????????????????????????????????????????????? | | ????????????????????????????????????????????????? | | ????????????????????????????????????????????????? | | ????????????????????????????????????????????????? | | ????????????????????????????????????????????????? | | ?????????????????????????????????##########?????? | | ?????????????????????????????????# T #?????? | | ?????????????????????????????????# #?????? | | ?????????????????########?????##?# #?????? | | ?????????????????#! """ #????? #?# #?????? | | ?????????????????# """ ????? #?# #?????? | | ?????????????????# """ ????? #?# #?????? | | ?????????????????# ????" #?# #?????? | | ?????????????????# ????? #?# #?????? | | ?????????????????# ????? ??# #?????? | | ?????????????????#"##"######/######+#######?????? | | ?????????????????# t #????????? | | ?????????????????#% % = !== #????????? | | ?????????????????#% %*%g%%! #????????? | | ??????????#### ### % ###g;%!#######+########????? | | ? ## g[ #??# #????? | | ? ## #### #????? | | ? % ## @ % +% + #????? | | ??######/######### ## #### #????? | | ?????????????????# ## #??# #????? | | ?????????????????#! ## #??# #????? | | ?????????????????#%% ## #??# #????? | | ?????????????????"! ^## #??# #????? | | ?????????????????#% ## ##??# #????? | | ?????????????????#% ##########???##########????? | | ?????????????????#= #??????????????????????????? | | ?????????????????# #??????????????????????????? | | ?????????????????# #??????????????????????????? | | ????????????????? ???????????????????????????? | | ????????????????? ???????????????????????????? | | ????????????????? H%???????????????????????????? | | ????????????????? ???????????????????????????? | | ????????????????? ???????????????????????????? | | ????????????????## ???????????????????????????? | | ?????????????????? ???????????????????????????? | | ????????????????????????????????????????????????? | | ????????????????????????????????????????????????? | | ????????????????????????????????????????????????? | | ????????????????????????????????????????????????? | | ????????????????????????????????????????????????? | | ????????????????????????????????????????????????? | | ????????????????????????????????????????????????? | +----------------------------------------------------+ Best States ------------- Heat Dissipation 58 Coolant Potential 50 Energy Generation 16 Energy Capacity 290 Matter Stores 300 Matter Capacity 300 Sight Range 20 Terrain Scan Density 10 Evasion (%) 55 Core Analysis 6 Recoil Reduction 3 Offensive Hacking 30 Authchip Count 1 Item Schematics ----------------- None Robot Schematics ------------------ None Fabricated ------------ Nothing Alien Tech Used ----------------- None Achievements -------------- None Challenges ------------ None Game ------ Seed ImpactAntigravCycler Manual? 0 Play Time 00:20:22 Cumulative 826.6 hours Start 2024.07.30 @ 17:59:13 End 2024.07.31 @ 11:29:37 Sessions 3 Manual Loads 0 Difficulty Rogue Special Mode None Game No. 980 Rogue 701 Adventurer 124 Explorer 155 Win Type - Total 34 Types 27/0/5/1/0/0/0/1/0 Lore% 66 Gallery% 88 Achievement% 78 Wizard Run 0 Options --------- Layout 0 ASCII 0 Keyboard 1 Movement Numpad Keybinds 0 Fullscreen 2 Font 18/SmallcapsGlow Map View 76x50 Zoom Use 0% Tactical HUD 1 Map Filters NONE Filters NONE Steam 1 RUN: 00257819-b711-46ee-af28-08995f615f28